bitfinex/quotes_BTCUSD_20220226
["timestamp","ask_amount","ask_price","bid_price","bid_amount"]
[1645892598483,0.2142208,39281.0,39278.0,0.00037042]
[1645892598684,0.2152208,39281.0,39278.0,0.00037042]
[1645892598884,0.2152208,39281.0,39276.0,0.063689]
[1645892599086,0.3,39280.0,39278.0,0.00037042]
[1645892599336,0.2152208,39281.0,39278.0,0.00037042]
[1645892599930,0.001,39281.0,39278.0,0.00037042]
[1645892600132,0.001,39281.0,39276.0,0.063689]
[1645892600333,0.2152208,39281.0,39278.0,0.00037042]
[1645892600530,0.3,39282.0,39278.0,0.00037042]
[1645892601332,0.3,39282.0,39276.0,0.064689]
[1645892601532,0.3,39282.0,39278.0,0.00034757]
[1645892602432,0.378362,39281.0,39276.0,0.063689]
[1645892602636,0.3,39280.0,39278.0,0.00034757]
[1645892602833,0.301,39282.0,39278.0,0.00034757]
[1645892603684,0.301,39282.0,39276.0,0.063689]
[1645892603883,0.3,39282.0,39278.0,0.00034757]
[1645892604387,0.378362,39281.0,39278.0,0.00034757]
[1645892604582,0.3,39280.0,39278.0,0.00034757]
[1645892604783,0.301,39282.0,39276.0,0.063689]
[1645892605083,0.301,39282.0,39278.0,0.00034757]
[1645892605084,0.378362,39281.0,39278.0,0.00034757]
[1645892605282,0.3,39280.0,39278.0,0.00034757]
[1645892605487,0.378362,39279.0,39278.0,0.00034757]
[1645892605682,0.3,39280.0,39278.0,0.00034757]
[1645892605683,0.001,39282.0,39278.0,0.00034757]
[1645892605883,0.3,39283.0,39278.0,0.00034757]
[1645892606083,0.3,39283.0,39276.0,0.063689]
[1645892606284,0.3,39283.0,39278.0,0.00034987]
[1645892606484,0.3,39283.0,39278.0,0.06403187]
[1645892607334,0.3,39283.0,39278.0,0.063682]
[1645892607537,0.3,39283.0,39279.0,0.00034987]
[1645892607735,0.3,39283.0,39279.0,0.00027296]
[1645892608134,0.29949236,39283.0,39279.0,0.00027296]
[1645892608537,0.29949236,39283.0,39278.0,0.063682]
[1645892608737,0.29949236,39283.0,39279.0,0.001]
[1645892609738,0.20438893,39284.0,39279.0,0.001]
[1645892609938,0.20438893,39284.0,39279.0,0.00034963]
[1645892610140,0.20438893,39284.0,39279.0,0.06403263]
[1645892610340,0.3,39285.0,39279.0,0.12771363]
[1645892610581,0.2678924,39286.0,39279.0,0.12771363]
[1645892610781,0.3,39285.0,39279.0,0.127364]
[1645892612285,0.3,39285.0,39279.0,0.063683]
[1645892613683,0.301,39285.0,39279.0,0.063683]
[1645892614330,0.296,39285.0,39279.0,0.063683]
[1645892614535,0.295,39285.0,39279.0,0.063683]
[1645892614837,0.295,39285.0,39280.0,0.00036152]
[1645892615232,0.295,39285.0,39279.0,0.06358672]
[1645892615634,0.295,39285.0,39279.0,0.12726672]
[1645892617338,0.296,39285.0,39279.0,0.12726672]
[1645892618786,0.295,39285.0,39279.0,0.12726672]
[1645892619386,0.296,39285.0,39279.0,0.12726672]
[1645892619587,0.001,39285.0,39279.0,0.12726672]
[1645892619787,0.301,39285.0,39279.0,0.12726672]
[1645892620387,0.001,39285.0,39279.0,0.12726672]
[1645892620790,0.49577425,39286.0,39279.0,0.12726672]
[1645892620791,0.22797443,39286.0,39279.0,0.12726672]
[1645892621491,0.22797443,39286.0,39279.0,0.12826672]
[1645892621690,0.22297443,39286.0,39279.0,0.12826672]
[1645892622146,0.49077425,39286.0,39279.0,0.12826672]
[1645892623248,0.49077425,39286.0,39279.0,0.12726672]
[1645892623451,0.49077425,39286.0,39279.0,0.12826672]
[1645892624250,0.26779982,39285.0,39279.0,0.12826672]
[1645892624648,0.26779982,39285.0,39279.0,0.12726672]
[1645892625592,0.64616182,39284.0,39279.0,0.06458672]
[1645892626093,0.3,39283.0,39279.0,0.06458672]
[1645892626294,0.56779982,39283.0,39279.0,0.06458672]
[1645892626494,0.378362,39282.0,39279.0,0.06458672]
[1645892626694,0.2271849,39280.0,39279.0,0.06358672]
[1645892626891,0.26779982,39283.0,39280.0,0.34249798]
[1645892627092,0.19662874,39281.0,39280.0,0.34249798]
[1645892627497,0.19662874,39281.0,39280.0,0.34349798]
[1645892627894,0.26779982,39284.0,39280.0,0.34349798]
[1645892628695,0.26779982,39284.0,39280.0,0.34249798]
[1645892629535,0.26779982,39283.0,39280.0,0.34249798]
[1645892630140,0.26879982,39284.0,39280.0,0.34249798]
[1645892630537,0.26779982,39283.0,39280.0,0.34249798]
[1645892631537,0.26779982,39283.0,39280.0,0.34349798]
[1645892631938,0.26779982,39284.0,39280.0,0.34349798]
[1645892632739,0.26779982,39284.0,39280.0,0.34249798]
[1645892633582,0.26979982,39284.0,39280.0,0.34249798]
[1645892634382,0.26779982,39283.0,39280.0,0.34249798]
[1645892635184,0.378362,39282.0,39280.0,0.34249798]
[1645892635384,0.26779982,39283.0,39280.0,0.34349798]
[1645892635588,0.378362,39282.0,39280.0,0.34349798]
[1645892635786,0.26779982,39283.0,39280.0,0.34349798]
[1645892635986,0.26779982,39284.0,39280.0,0.34349798]
[1645892636185,0.26779982,39283.0,39280.0,0.34349798]
[1645892637441,0.26779982,39283.0,39280.0,0.34449798]
[1645892637838,0.26779982,39282.0,39280.0,0.34449798]
[1645892638638,0.26779982,39282.0,39280.0,0.34249798]
[1645892640242,0.26779982,39283.0,39280.0,0.34249798]
[1645892641577,0.26779982,39283.0,39280.0,0.34349798]
[1645892642778,0.26779982,39283.0,39280.0,0.34249798]
[1645892643584,0.38508975,39287.0,39280.0,0.34349798]
[1645892643585,0.26779982,39284.0,39280.0,0.34349798]
[1645892643780,0.26779982,39284.0,39281.0,0.191015]
[1645892644840,0.26779982,39285.0,39281.0,0.189815]
[1645892645541,0.21446195,39283.0,39281.0,0.190815]
[1645892646744,0.21446195,39283.0,39281.0,0.189815]
[1645892647547,0.21446195,39284.0,39281.0,0.190815]
[1645892648783,0.21446195,39284.0,39281.0,0.189815]
[1645892649582,0.21546195,39284.0,39281.0,0.189815]
[1645892649782,0.21446195,39283.0,39281.0,0.189815]
[1645892650183,0.21446195,39283.0,39281.0,0.062472]
[1645892650382,0.21446195,39283.0,39280.0,0.46984098]
[1645892651183,0.20401716,39281.0,39280.0,0.34249798]
[1645892651584,0.19401716,39281.0,39280.0,0.34349798]
[1645892651838,0.40847911,39281.0,39280.0,0.34349798]
[1645892652239,0.40847911,39281.0,39280.0,0.34308213]
[1645892652443,0.87237916,39281.0,39280.0,0.34308213]
[1645892652640,1.14017898,39281.0,39280.0,0.34308213]
[1645892652838,1.14017898,39281.0,39280.0,0.34208213]
[1645892653641,1.14117898,39281.0,39280.0,0.34208213]
[1645892654840,0.84017898,39281.0,39280.0,0.34208213]
[1645892655443,0.84017898,39281.0,39280.0,0.34308213]
[1645892655885,0.26779982,39281.0,39280.0,0.34308213]
[1645892656094,0.001,39286.0,39280.0,0.34308213]
[1645892656095,0.26779982,39282.0,39280.0,0.34308213]
[1645892656589,0.21451015,39281.0,39280.0,0.34308213]
[1645892656785,0.21451015,39281.0,39280.0,0.64208213]
[1645892656985,0.21452623,39283.0,39282.0,0.43636062]
[1645892657186,0.21453021,39283.0,39282.0,0.73636062]
[1645892657586,0.21553021,39283.0,39282.0,0.43636062]
[1645892657990,0.001,39283.0,39282.0,0.73636062]
[1645892658389,0.001,39283.0,39282.0,0.43636062]
[1645892658888,0.21453021,39284.0,39282.0,0.43636062]
[1645892659538,0.21553021,39284.0,39282.0,0.43636062]
[1645892659837,0.001,39284.0,39282.0,0.43636062]
[1645892660237,0.001,39284.0,39282.0,0.50002805]
[1645892661039,0.001,39284.0,39282.0,0.43636062]
[1645892661438,0.21453021,39285.0,39282.0,0.43636062]
[1645892661647,0.001,39284.0,39282.0,0.43636062]
[1645892662040,0.21553021,39284.0,39282.0,0.43636062]
[1645892662239,0.001,39284.0,39282.0,0.43636062]
[1645892662939,0.21453021,39286.0,39282.0,0.43636062]
[1645892663186,0.21453021,39285.0,39282.0,0.43636062]
[1645892663585,0.21453021,39285.0,39282.0,0.43736062]
[1645892663791,0.21323021,39285.0,39282.0,0.43736062]
[1645892663989,0.41433837,39285.0,39282.0,0.43736062]
[1645892664488,0.00035049,39287.0,39282.0,0.43736062]
[1645892664686,0.00035049,39287.0,39282.0,0.43636062]
[1645892664888,0.26779982,39288.0,39282.0,0.43636062]
[1645892665087,0.26779982,39288.0,39283.0,0.063673]
[1645892665287,0.00035034,39287.0,39283.0,0.063673]
[1645892666089,0.26779982,39288.0,39283.0,0.063673]
[1645892666486,0.00035034,39287.0,39283.0,0.063673]
[1645892667338,0.26879982,39288.0,39283.0,0.063673]
[1645892667537,0.00035034,39287.0,39283.0,0.064673]
[1645892668137,0.00035034,39287.0,39283.0,0.063673]
[1645892668538,0.26779982,39288.0,39283.0,0.063673]
[1645892668738,0.00035036,39287.0,39283.0,0.063673]
[1645892668938,0.26473921,39288.0,39283.0,0.063673]
[1645892669643,0.26473921,39288.0,39283.0,0.065673]
[1645892671383,0.26473921,39288.0,39283.0,0.063673]
[1645892671584,0.24427347,39288.0,39283.0,0.064673]
[1645892672783,0.24427347,39288.0,39283.0,0.063673]
[1645892673583,0.24427347,39288.0,39283.0,0.065673]
[1645892674739,0.378362,39287.0,39283.0,0.063673]
[1645892674936,0.24427347,39288.0,39283.0,0.063673]
[1645892675135,0.378362,39287.0,39283.0,0.063673]
[1645892675336,0.24427347,39288.0,39283.0,0.063673]
[1645892675537,0.24427347,39288.0,39283.0,0.065673]
[1645892676836,0.24427347,39288.0,39283.0,0.063673]
[1645892678284,0.24427347,39288.0,39283.0,0.064673]
[1645892679483,0.24427347,39288.0,39283.0,0.063673]
[1645892679684,0.24427347,39288.0,39283.0,0.065673]
[1645892680682,0.21441055,39286.0,39283.0,0.065673]
[1645892680884,0.21441055,39286.0,39283.0,0.063673]
[1645892681584,0.21541055,39286.0,39282.0,0.43636062]
[1645892681838,0.21441055,39285.0,39282.0,0.43673309]
[1645892682236,0.21441055,39284.0,39282.0,0.43673309]
[1645892682833,0.21441055,39284.0,39282.0,0.43636062]
[1645892683534,0.19903916,39283.0,39282.0,0.43636062]
[1645892683735,0.41344971,39283.0,39282.0,0.43636062]
[1645892683938,0.57740116,39283.0,39282.0,0.43636062]
[1645892684338,0.82167463,39283.0,39282.0,0.43636062]
[1645892684541,0.85827689,39283.0,39282.0,0.43636062]
[1645892684742,1.23073668,39283.0,39282.0,0.43636062]
[1645892684945,0.94986095,39283.0,39282.0,0.43636062]
[1645892685586,0.95186095,39283.0,39282.0,0.43636062]
[1645892686789,0.94986095,39283.0,39282.0,0.43636062]
[1645892687591,0.95086095,39283.0,39282.0,0.43636062]
[1645892687788,0.62950116,39283.0,39282.0,0.43636062]
[1645892688189,0.95086095,39283.0,39282.0,0.43636062]
[1645892688389,0.62950116,39283.0,39282.0,0.43636062]
[1645892688590,0.95086095,39283.0,39282.0,0.43636062]
[1645892689438,0.62850116,39283.0,39282.0,0.43636062]
[1645892689639,0.94986095,39283.0,39282.0,0.43636062]
[1645892690541,0.62850116,39283.0,39282.0,0.43636062]
[1645892690840,0.94986095,39283.0,39282.0,0.43636062]
[1645892692439,0.62850116,39283.0,39282.0,0.43636062]
[1645892693585,0.62850116,39283.0,39282.0,0.4362607]
[1645892696936,0.57740116,39283.0,39282.0,0.4362607]
[1645892697740,0.84509956,39283.0,39282.0,0.4362607]
[1645892698335,0.57740116,39283.0,39282.0,0.4362607]
[1645892698536,0.8450718,39283.0,39282.0,0.4362607]
[1645892700698,0.57733864,39283.0,39282.0,0.4362607]
[1645892700899,1.17973318,39283.0,39282.0,0.4362607]
[1645892701499,1.17963697,39283.0,39282.0,0.4362607]
[1645892701797,1.18063697,39283.0,39282.0,0.4362607]
[1645892701999,0.85937339,39283.0,39282.0,0.4362607]
[1645892702199,1.40243892,39283.0,39282.0,0.4362607]
[1645892702397,1.19386724,39283.0,39282.0,0.4362607]
[1645892702597,2.43083724,39283.0,39282.0,0.4362607]
[1645892702801,2.4409366,39283.0,39282.0,0.4362607]
[1645892702996,2.44632619,39283.0,39282.0,0.4362607]
[1645892703196,1.9768,39282.0,39281.0,0.00037247]
[1645892703397,0.2,39279.0,39260.0,0.468416]
[1645892703599,0.2,39279.0,39271.0,0.00149023]
[1645892703600,0.08,39272.0,39271.0,0.00149023]
[1645892703799,0.9724837,39272.0,39271.0,0.00149023]
[1645892704454,0.97208124,39272.0,39258.0,0.298818]
[1645892704663,0.08,39259.0,39258.0,0.1851]
[1645892704857,0.08,39259.0,39254.0,0.71862611]
[1645892704858,0.08,39259.0,39254.0,0.503593]
[1645892705053,0.08,39259.0,39254.0,0.383293]
[1645892706556,0.08,39267.0,39254.0,0.383293]
[1645892706755,0.08,39265.0,39254.0,0.383293]
[1645892706954,0.08,39263.0,39254.0,0.383293]
[1645892707155,0.08,39261.0,39259.0,0.00037232]
[1645892707355,0.08,39260.0,39259.0,0.00037232]
[1645892707757,0.08,39258.0,39254.0,0.37866532]
[1645892708788,0.08,39260.0,39254.0,0.37866532]
[1645892709891,0.08,39259.0,39254.0,0.37866532]
[1645892711092,0.08,39260.0,39254.0,0.37866532]
[1645892711838,0.08,39260.0,39255.0,0.00037233]
[1645892712841,0.08,39260.0,39254.0,0.37866532]
[1645892713043,0.08,39260.0,39254.0,0.0011]
[1645892713244,0.08,39260.0,39256.0,0.00037233]
[1645892713845,0.08,39259.0,39256.0,0.00037233]
[1645892714747,0.08,39258.0,39256.0,0.00037233]
[1645892715343,0.08,39258.0,39255.0,0.063719]
[1645892715585,0.08,39258.0,39255.0,0.06409133]
[1645892715790,0.08,39257.0,39255.0,0.00037233]
[1645892716485,0.08,39257.0,39254.0,0.0011]
[1645892716687,0.08,39257.0,39254.0,0.00147234]
[1645892716885,0.08,39256.0,39254.0,0.00147234]
[1645892717489,0.458362,39255.0,39254.0,0.00147234]
[1645892717689,0.458362,39255.0,39254.0,0.00068529]
[1645892717890,0.758362,39255.0,39254.0,0.00068529]
[1645892719735,0.759362,39255.0,39254.0,0.00068529]
[1645892720941,0.758362,39255.0,39254.0,0.00068529]
[1645892723795,0.759362,39255.0,39254.0,0.00068529]
[1645892724100,0.810462,39255.0,39254.0,0.00068529]
[1645892724292,0.820632,39255.0,39254.0,0.00068529]
[1645892724496,0.920632,39255.0,39254.0,0.00012977]
[1645892724695,0.920632,39255.0,39250.0,0.001]
[1645892724696,0.08,39253.0,39250.0,0.001]
[1645892724895,0.08,39251.0,39250.0,0.001]
[1645892725095,0.768542,39251.0,39250.0,0.001]
[1645892725298,0.758362,39251.0,39250.0,0.001]
[1645892725696,0.759362,39251.0,39250.0,0.001]
[1645892726098,0.759302,39251.0,39250.0,0.001]
[1645892726941,0.758302,39251.0,39250.0,0.001]
[1645892727344,0.758302,39251.0,39248.0,0.0021]
[1645892727345,0.07994,39249.0,39248.0,0.0021]
[1645892727643,0.73941295,39249.0,39248.0,0.0021]
[1645892727840,0.458302,39249.0,39248.0,0.0021]
[1645892729244,1.658302,39248.0,39247.0,0.00347238]
[1645892729544,1.658302,39247.0,39246.0,0.0021]
[1645892729743,0.07994,39245.0,39243.0,0.0041]
[1645892729942,0.79014525,39245.0,39243.0,0.0041]
[1645892730144,0.595402,39245.0,39243.0,0.0021]
[1645892730343,0.595402,39245.0,39241.0,0.0121]
[1645892730344,1.27994,39243.0,39241.0,0.0121]
[1645892730595,1.27994,39243.0,39240.0,0.0021]
[1645892730596,1.27994,39241.0,39240.0,0.0021]
[1645892730794,1.658302,39241.0,39240.0,0.0021]
[1645892731094,1.709402,39241.0,39240.0,0.0021]
[1645892732693,0.07994,39239.0,39234.0,0.0021]
[1645892732893,1.27994,39238.0,39234.0,0.0021]
[1645892733096,1.709402,39238.0,39234.0,0.0021]
[1645892733295,0.07994,39236.0,39231.0,0.0900949]
[1645892733495,0.07988,39234.0,39231.0,0.0900949]
[1645892733695,0.07988,39232.0,39231.0,0.0900949]
[1645892734001,1.01841363,39232.0,39228.0,0.0031]
[1645892734198,1.01841363,39232.0,39229.0,0.0008797]
[1645892734199,1.658242,39230.0,39229.0,0.0008797]
[1645892734447,1.709342,39230.0,39229.0,0.0008797]
[1645892734942,0.509342,39230.0,39229.0,0.0008797]
[1645892735241,0.809342,39230.0,39229.0,0.0008797]
[1645892737441,0.810342,39230.0,39229.0,0.0008797]
[1645892738297,0.81023433,39230.0,39229.0,0.0008797]
[1645892738693,0.80923433,39230.0,39229.0,0.0008797]
[1645892738892,0.07977233,39228.0,39218.0,0.03814236]
[1645892739092,0.07977233,39224.0,39216.0,0.063785]
[1645892739691,0.07969397,39224.0,39216.0,0.063785]
[1645892740092,0.07969397,39223.0,39216.0,0.063785]
[1645892740493,0.07969397,39223.0,39217.0,0.3]
[1645892740894,0.07969397,39223.0,39216.0,0.063785]
[1645892741094,0.07969397,39222.0,39216.0,0.38972398]
[1645892741295,0.07969397,39222.0,39216.0,0.06428398]
[1645892741842,0.07963397,39222.0,39216.0,0.06428398]
[1645892742040,0.07963397,39222.0,39217.0,0.00021315]
[1645892742240,0.07963397,39221.0,39216.0,0.03949713]
[1645892743041,0.0795654,39221.0,39216.0,0.03949713]
[1645892743242,0.0795654,39220.0,39216.0,0.03949713]
[1645892743844,0.0795654,39220.0,39217.0,0.02544]
[1645892744048,0.0795654,39220.0,39217.0,0.42544]
[1645892744246,0.0795654,39220.0,39219.0,0.12544]
[1645892744447,0.1902,39236.0,39226.0,0.063762]
[1645892744645,0.38335352,39236.0,39227.0,0.3]
[1645892745143,0.19315352,39236.0,39227.0,0.32544]
[1645892745343,0.015,39238.0,39228.0,0.063765]
[1645892745593,0.015,39238.0,39231.0,0.063755]
[1645892745594,0.01365,39238.0,39231.0,0.063755]
[1645892746395,0.01365,39238.0,39233.0,0.063754]
[1645892746396,0.24604611,39238.0,39233.0,0.063754]
[1645892746595,0.378362,39237.0,39233.0,0.063754]
[1645892746796,0.00037242,39236.0,39233.0,0.063754]
[1645892747396,0.00137242,39236.0,39232.0,0.127508]
[1645892747898,0.001,39236.0,39232.0,0.127508]
[1645892748099,0.00137242,39236.0,39232.0,0.127508]
[1645892748798,0.00037242,39236.0,39232.0,0.127508]
[1645892748997,0.23239611,39238.0,39232.0,0.127508]
[1645892749198,0.00037242,39236.0,39232.0,0.127508]
[1645892749443,0.00037242,39236.0,39232.0,0.129508]
[1645892750237,0.001,39241.0,39232.0,0.129508]
[1645892750438,0.00037242,39236.0,39234.0,0.063754]
[1645892751439,0.378362,39241.0,39236.0,6e-05]
[1645892751641,0.00037242,39237.0,39236.0,6e-05]
[1645892752640,0.37829397,39241.0,39236.0,6e-05]
[1645892752840,0.00037241,39238.0,39236.0,6e-05]
[1645892753490,0.00037241,39238.0,39236.0,0.00106]
[1645892753887,0.37829397,39241.0,39236.0,0.00106]
[1645892754186,0.21126546,39242.0,39236.0,0.00106]
[1645892754187,0.00037241,39239.0,39236.0,0.00106]
[1645892754386,0.37875341,39239.0,39236.0,0.00106]
[1645892754587,0.37875341,39239.0,39236.0,6e-05]
[1645892754792,0.00037241,39239.0,39236.0,6e-05]
[1645892754990,0.21126546,39242.0,39236.0,6e-05]
[1645892755188,0.0003724,39239.0,39236.0,6e-05]
[1645892755390,0.378381,39238.0,39236.0,6e-05]
[1645892755790,0.0003724,39239.0,39236.0,6e-05]
[1645892755791,0.3787534,39239.0,39238.0,0.00014015]
[1645892756191,0.378381,39239.0,39238.0,0.00014015]
[1645892759550,0.380381,39239.0,39238.0,0.00014015]
[1645892759956,0.00185995,39239.0,39238.0,0.00014015]
[1645892760592,0.38024095,39239.0,39238.0,0.00014015]
[1645892760892,0.378381,39239.0,39238.0,0.00014015]
[1645892761491,0.381381,39239.0,39238.0,0.00014015]
[1645892761691,0.381381,39239.0,39230.0,0.127508]
[1645892761891,0.003,39239.0,39230.0,0.127508]
[1645892762092,0.003,39239.0,39234.0,0.063755]
[1645892762293,0.003,39239.0,39235.0,0.063753]
[1645892762596,0.00037242,39237.0,39235.0,0.063753]
[1645892763392,0.002,39237.0,39235.0,0.03391219]
[1645892764845,0.00037241,39238.0,39235.0,0.03391219]
[1645892765045,0.00037241,39238.0,39237.0,6e-05]
[1645892765544,0.00237241,39238.0,39237.0,6e-05]
[1645892765744,0.002,39238.0,39237.0,6e-05]
[1645892766746,0.0003724,39239.0,39237.0,6e-05]
[1645892766945,0.21126546,39242.0,39237.0,6e-05]
[1645892767146,0.378381,39241.0,39237.0,6e-05]
[1645892767347,0.21126546,39242.0,39237.0,6e-05]
[1645892767348,0.0003724,39239.0,39237.0,6e-05]
[1645892768294,0.378381,39241.0,39237.0,6e-05]
[1645892768489,0.0003724,39240.0,39237.0,6e-05]
[1645892768890,0.378381,39239.0,39237.0,6e-05]
[1645892769090,0.0003724,39240.0,39237.0,6e-05]
[1645892769290,0.378381,39239.0,39237.0,6e-05]
[1645892769491,0.21126546,39242.0,39237.0,6e-05]
[1645892769691,0.0003724,39240.0,39237.0,6e-05]
[1645892769893,0.3778365,39241.0,39237.0,6e-05]
[1645892770591,0.378381,39240.0,39237.0,6e-05]
[1645892770793,0.378381,39241.0,39231.0,0.3]
[1645892770992,0.42533674,39242.0,39231.0,0.3]
[1645892771394,0.42533674,39242.0,39230.0,0.127508]
[1645892771840,0.42533674,39242.0,39231.0,0.3]
[1645892772046,0.42533674,39242.0,39233.0,0.063757]
[1645892772244,0.378381,39241.0,39233.0,0.063757]
[1645892772443,0.21407128,39241.0,39233.0,0.063757]
[1645892773645,0.21407128,39241.0,39234.0,0.063754]
[1645892774442,0.20907128,39241.0,39234.0,0.063754]
[1645892774843,0.21163784,39242.0,39234.0,0.063754]
[1645892775043,0.378381,39241.0,39233.0,0.063757]
[1645892775245,0.21163784,39242.0,39233.0,0.063757]
[1645892775448,0.378381,39241.0,39234.0,0.001]
[1645892775689,0.21163784,39242.0,39234.0,0.001]
[1645892776591,0.378381,39241.0,39234.0,0.001]
[1645892776790,0.21163784,39242.0,39233.0,0.063757]
[1645892777190,0.378381,39241.0,39233.0,0.063757]
[1645892777390,0.21163784,39242.0,39233.0,0.063757]
[1645892777590,0.21163784,39242.0,39233.0,0.064757]
[1645892777791,0.378381,39241.0,39233.0,0.064757]
[1645892777996,0.20995256,39242.0,39233.0,0.064757]
[1645892778793,0.378381,39240.0,39233.0,0.063757]
[1645892778994,0.20960315,39242.0,39233.0,0.063757]
[1645892779194,0.20995256,39242.0,39233.0,0.063757]
[1645892779440,0.20995256,39242.0,39233.0,0.064757]
[1645892780242,0.20960315,39242.0,39233.0,0.064757]
[1645892780443,0.378381,39241.0,39233.0,0.064757]
[1645892780844,0.20995256,39242.0,39233.0,0.063757]
[1645892781044,0.17611057,39236.0,39233.0,0.063757]
[1645892781643,0.27783212,39243.0,39234.0,0.063754]
[1645892781644,0.0003494,39242.0,39234.0,0.063754]
[1645892782045,0.0003494,39242.0,39234.0,0.363754]
[1645892782245,0.0003494,39242.0,39234.0,0.491252]
[1645892782647,0.01018,39243.0,39234.0,0.491252]
[1645892782851,0.00035096,39242.0,39234.0,0.491252]
[1645892783089,0.00035096,39242.0,39234.0,0.191252]
[1645892783489,0.00035096,39242.0,39234.0,0.193252]
[1645892783689,0.00035096,39242.0,39234.0,0.493252]
[1645892783890,0.45221216,39243.0,39234.0,0.493252]
[1645892784088,0.00035096,39242.0,39234.0,0.193252]
[1645892784490,0.2140011,39241.0,39234.0,0.193252]
[1645892784688,0.2140011,39241.0,39234.0,0.191252]
[1645892784988,0.2140011,39241.0,39234.0,0.186252]
[1645892785990,0.2140011,39241.0,39234.0,0.486252]
[1645892787043,0.2140011,39240.0,39234.0,0.486252]
[1645892787243,0.2140011,39240.0,39234.0,0.511692]
[1645892787447,0.2140011,39241.0,39235.0,0.24233606]
[1645892787645,0.26765212,39243.0,39236.0,0.5789892]
[1645892787646,0.00035085,39242.0,39236.0,0.5789892]
[1645892787847,0.00035085,39242.0,39238.0,0.063741]
[1645892788046,0.00035085,39242.0,39239.0,0.3]
[1645892788245,0.00035085,39242.0,39240.0,0.127479]
[1645892788650,0.2140011,39244.0,39240.0,0.127479]
[1645892788846,0.00035085,39243.0,39240.0,0.127479]
[1645892789549,0.00035085,39243.0,39240.0,0.254953]
[1645892789749,0.2140011,39244.0,39240.0,0.254953]
[1645892789948,0.2140011,39245.0,39240.0,0.254953]
[1645892790149,0.00035086,39243.0,39240.0,0.254953]
[1645892790991,0.2140011,39245.0,39240.0,0.254953]
[1645892791197,0.00035086,39243.0,39240.0,0.254953]
[1645892792200,0.20175252,39241.0,39240.0,0.254953]
[1645892793095,0.20175252,39241.0,39240.0,0.127479]
[1645892793496,0.20175252,39241.0,39240.0,0.11437197]
[1645892795545,0.20175252,39241.0,39240.0,0.10937197]
[1645892796748,0.20175252,39241.0,39235.0,0.47027259]
[1645892796947,0.20175252,39241.0,39235.0,0.254986]
[1645892797149,0.41575362,39241.0,39235.0,0.254986]
[1645892797649,0.60602362,39241.0,39233.0,0.21528659]
[1645892797855,0.2140011,39239.0,39231.0,0.21528659]
[1645892798306,0.18594487,39232.0,39231.0,0.21528659]
[1645892798503,0.18594487,39232.0,39230.0,0.21528659]
[1645892798695,0.18594487,39232.0,39231.0,0.0999]
[1645892798904,0.18594487,39232.0,39231.0,0.31518659]
[1645892799096,0.18594487,39232.0,39231.0,0.21528659]
[1645892800298,0.2140011,39239.0,39231.0,0.21528659]
[1645892800499,0.378381,39238.0,39231.0,0.21528659]
[1645892800701,0.2140011,39239.0,39231.0,0.21528659]
[1645892801303,0.21365957,39239.0,39231.0,0.28104459]
[1645892801509,0.23000619,39235.0,39231.0,0.28104459]
[1645892801946,0.23000619,39235.0,39231.0,0.27904459]
[1645892802347,0.31071619,39235.0,39229.0,0.127515]
[1645892804551,0.31071619,39235.0,39225.0,0.3187953]
[1645892804750,0.31071619,39235.0,39224.0,0.41423749]
[1645892804951,0.31071619,39235.0,39224.0,0.14744219]
[1645892805150,0.378381,39234.0,39224.0,0.14744219]
[1645892805351,0.22059656,39226.0,39224.0,0.01955919]
[1645892805602,0.22059656,39226.0,39224.0,0.01991018]
[1645892805999,0.1202,39233.0,39224.0,0.01991018]
[1645892806213,0.378381,39232.0,39224.0,0.01791018]
[1645892806601,0.378381,39232.0,39224.0,0.01755919]
[1645892806803,0.378381,39232.0,39224.0,0.01791018]
[1645892806999,0.22320144,39230.0,39224.0,0.08168118]
[1645892807202,0.1202,39233.0,39224.0,0.08168118]
[1645892807802,0.1202,39233.0,39224.0,0.08133019]
[1645892808002,0.1202,39233.0,39224.0,0.38168118]
[1645892808203,0.1202,39233.0,39224.0,0.65047648]
[1645892808401,0.1202,39233.0,39224.0,0.38168118]
[1645892808802,0.1202,39233.0,39224.0,0.4454411]
[1645892809002,0.1202,39233.0,39227.0,0.063758]
[1645892809203,0.20898126,39237.0,39228.0,0.3]
[1645892809453,0.32118255,39242.0,39229.0,0.0511]
[1645892809454,0.39293212,39241.0,39229.0,0.0511]
[1645892809751,0.1151,39241.0,39230.0,0.3]
[1645892809948,0.1151,39241.0,39232.0,0.063745]
[1645892810149,0.1151,39241.0,39234.0,0.06374435]
[1645892810351,0.1842,39243.0,39236.0,0.063746]
[1645892810548,0.19943163,39241.0,39236.0,0.063746]
[1645892810949,0.19943163,39241.0,39236.0,0.064746]
[1645892812153,0.00035086,39242.0,39236.0,0.064746]
[1645892812349,0.00035086,39242.0,39236.0,0.063746]
[1645892812751,0.2139968,39243.0,39236.0,0.063746]
[1645892812954,0.00035086,39242.0,39236.0,0.064746]
[1645892813795,0.2139968,39243.0,39236.0,0.064746]
[1645892814196,0.19394406,39244.0,39233.0,0.12749]
[1645892814197,0.21434766,39242.0,39233.0,0.12749]
[1645892814396,0.21402095,39242.0,39233.0,0.12749]
[1645892814596,0.00035086,39242.0,39233.0,0.12749]
[1645892814999,0.20837759,39237.0,39233.0,0.12849]
[1645892816300,0.26765212,39242.0,39233.0,0.12849]
[1645892816500,0.26800297,39242.0,39235.0,0.063752]
[1645892816947,0.00035085,39242.0,39236.0,0.06375]
[1645892817355,0.00035085,39242.0,39236.0,0.36375]
[1645892817653,0.00035086,39242.0,39239.0,0.063742]
[1645892818452,0.19675949,39242.0,39240.0,0.063742]
[1645892818650,0.19640863,39242.0,39240.0,0.063742]
[1645892818848,0.19675949,39242.0,39240.0,0.063742]
[1645892819047,0.19775949,39242.0,39240.0,0.063742]
[1645892819250,0.19775949,39242.0,39237.0,0.127485]
[1645892819848,0.19740863,39242.0,39237.0,0.127485]
[1645892820060,0.19775949,39242.0,39237.0,0.127485]
[1645892820891,0.19675949,39242.0,39237.0,0.128485]
[1645892821096,0.19640863,39242.0,39237.0,0.128485]
[1645892821292,0.19675949,39242.0,39237.0,0.128485]
[1645892821593,0.19675949,39242.0,39237.0,0.001]
[1645892821794,0.26765212,39241.0,39237.0,0.001]